[Event "*** Titled Tuesday Blitz"]
[Site "Chess.com"]
[Date "2020.04.21"]
[Round "5"]
[White "GMBenjaminBok"]
[Black "Rsnr"]
[Result "1-0"]
[WhiteElo "2888"]
[BlackElo "2780"]
[TimeControl "180+1"]
[EndTime "10:58:11 PDT"]
[Termination "GMBenjaminBok won by resignation"]

1. c4 {[%clk 0:03:00.9]} 1... Nf6 {[%clk 0:02:59.8]} 2. g3 {[%clk 0:03:01.2]}
2... e6 {[%clk 0:02:59.8]} 3. Bg2 {[%clk 0:03:01.5]} 3... d5 {[%clk 0:03:00.5]}
4. Nf3 {[%clk 0:03:02.1]} 4... dxc4 {[%clk 0:03:01]} 5. Qa4+ {[%clk 0:03:01.4]}
5... Nbd7 {[%clk 0:03:01.2]} 6. Qxc4 {[%clk 0:03:01.4]} 6... c5 {[%clk
0:03:00.5]} 7. d4 {[%clk 0:02:37.4]} 7... a6 {[%clk 0:02:57.5]} 8. Qc2 {[%clk
0:02:26.5]} 8... b5 {[%clk 0:02:43.6]} 9. Ne5 {[%clk 0:02:01.2]} 9... Nd5 {[%clk
0:02:43.3]} 10. Nxd7 {[%clk 0:01:52.7]} 10... Qxd7 {[%clk 0:02:40.9]} 11. dxc5
{[%clk 0:01:50.5]} 11... Bb7 {[%clk 0:02:41.6]} 12. O-O {[%clk 0:01:22.4]} 12...
Rc8 {[%clk 0:02:41.1]} 13. Rd1 {[%clk 0:01:19.9]} 13... Bxc5 {[%clk 0:02:40]}
14. e4 {[%clk 0:01:14.8]} 14... Nb4 {[%clk 0:02:34.1]} 15. Qe2 {[%clk
0:01:09.7]} 15... Qe7 {[%clk 0:02:34.5]} 16. Nc3 {[%clk 0:01:05.2]} 16... O-O
{[%clk 0:02:34.6]} 17. Bf4 {[%clk 0:00:55.6]} 17... Rfd8 {[%clk 0:02:02.3]} 18.
Rxd8+ {[%clk 0:00:18.3]} 18... Rxd8 {[%clk 0:02:03.2]} 19. Rd1 {[%clk
0:00:18.3]} 19... Bd4 {[%clk 0:01:50.3]} 20. Be3 {[%clk 0:00:14.1]} 20... Nc6
{[%clk 0:01:47.4]} 21. h4 {[%clk 0:00:11.4]} 21... h6 {[%clk 0:01:45.7]} 22. Kh2
{[%clk 0:00:08.6]} 22... Qf6 {[%clk 0:01:41.5]} 23. Kg1 {[%clk 0:00:05.8]} 23...
Bxc3 {[%clk 0:01:28.6]} 24. bxc3 {[%clk 0:00:04.8]} 24... Qxc3 {[%clk
0:01:26.5]} 25. Rxd8+ {[%clk 0:00:04.7]} 25... Nxd8 {[%clk 0:01:27.4]} 26. Qd1
{[%clk 0:00:04.9]} 26... Qc8 {[%clk 0:01:13.7]} 27. Qd6 {[%clk 0:00:03.8]} 27...
Bc6 {[%clk 0:01:07.7]} 28. Bb6 {[%clk 0:00:02.3]} 28... Nb7 {[%clk 0:01:07.8]}
29. Qe7 {[%clk 0:00:02.7]} 29... Qd7 {[%clk 0:01:06.9]} 30. Qxd7 {[%clk
0:00:03]} 30... Bxd7 {[%clk 0:01:07.8]} 31. e5 {[%clk 0:00:03.6]} 31... Bc8
{[%clk 0:01:00.6]} 32. f4 {[%clk 0:00:03.2]} 32... Kf8 {[%clk 0:00:57.4]} 33.
Kf2 {[%clk 0:00:03.3]} 33... Ke7 {[%clk 0:00:55]} 34. h5 {[%clk 0:00:02.3]}
34... Nd8 {[%clk 0:00:53.9]} 35. Bc5+ {[%clk 0:00:02.6]} 35... Ke8 {[%clk
0:00:54]} 36. Bf1 {[%clk 0:00:02.5]} 36... Bb7 {[%clk 0:00:53.8]} 37. a3 {[%clk
0:00:02.6]} 37... Bd5 {[%clk 0:00:53.7]} 38. g4 {[%clk 0:00:02.9]} 38... Nb7
{[%clk 0:00:51.1]} 39. Bb4 {[%clk 0:00:03.5]} 39... Bc6 {[%clk 0:00:51.8]} 40.
Ke3 {[%clk 0:00:03.8]} 40... a5 {[%clk 0:00:52.3]} 41. Bc3 {[%clk 0:00:03.4]}
41... Kd7 {[%clk 0:00:50.9]} 42. f5 {[%clk 0:00:03.8]} 42... Kc7 {[%clk
0:00:44.4]} 43. Bd3 {[%clk 0:00:03.8]} 43... exf5 {[%clk 0:00:36.2]} 44. gxf5
{[%clk 0:00:03.6]} 44... Kd7 {[%clk 0:00:28.8]} 45. Bd4 {[%clk 0:00:02.9]} 45...
b4 {[%clk 0:00:24.5]} 46. axb4 {[%clk 0:00:03.2]} 46... axb4 {[%clk 0:00:25.4]}
47. Bc4 {[%clk 0:00:03.7]} 47... Ke7 {[%clk 0:00:25.4]} 48. Kf4 {[%clk
0:00:04.1]} 48... Ba4 {[%clk 0:00:23.1]} 49. Bd5 {[%clk 0:00:03.6]} 49... Nd8
{[%clk 0:00:10.7]} 50. Bc5+ {[%clk 0:00:04.1]} 50... Ke8 {[%clk 0:00:11.5]} 51.
Bxb4 {[%clk 0:00:05]} 51... Bc6 {[%clk 0:00:12]} 52. Bc4 {[%clk 0:00:04.5]}
52... Bd7 {[%clk 0:00:11.7]} 53. Bc3 {[%clk 0:00:03.3]} 53... Kf8 {[%clk
0:00:09.5]} 54. Bb2 {[%clk 0:00:03]} 54... Bc8 {[%clk 0:00:09]} 55. Bc3 {[%clk
0:00:03.1]} 55... Bd7 {[%clk 0:00:09.2]} 56. Bd4 {[%clk 0:00:03.2]} 56... Bc8
{[%clk 0:00:09.3]} 57. Bb6 {[%clk 0:00:03.3]} 57... Nc6 {[%clk 0:00:08]} 58.
Bc5+ {[%clk 0:00:03.5]} 58... Ke8 {[%clk 0:00:08.4]} 59. e6 {[%clk 0:00:03.4]}
59... fxe6 {[%clk 0:00:09.3]} 60. fxe6 {[%clk 0:00:03.9]} 60... Na5 {[%clk
0:00:05.1]} 61. Bb5+ {[%clk 0:00:03.7]} 1-0

[Event "*** Titled Tuesday Blitz"]
[Site "Chess.com"]
[Date "2020.04.21"]
[Round "5"]
[White "pheonixking2000"]
[Black "Msb2"]
[Result "0-1"]
[WhiteElo "2812"]
[BlackElo "2928"]
[TimeControl "180+1"]
[EndTime "10:58:17 PDT"]
[Termination "Msb2 won on time"]

1. d4 {[%clk 0:01:37.8]} 1... Nf6 {[%clk 0:02:58]} 2. Nf3 {[%clk 0:01:35.5]}
2... d5 {[%clk 0:02:58]} 3. Bf4 {[%clk 0:01:34.2]} 3... c5 {[%clk 0:02:58.4]} 4.
e3 {[%clk 0:01:32.7]} 4... Nc6 {[%clk 0:02:59.1]} 5. Nbd2 {[%clk 0:01:32.9]}
5... cxd4 {[%clk 0:02:59.8]} 6. exd4 {[%clk 0:01:32.6]} 6... Qb6 {[%clk
0:03:00.7]} 7. Nb3 {[%clk 0:01:31.7]} 7... Bf5 {[%clk 0:03:01.3]} 8. c3 {[%clk
0:01:30.3]} 8... e6 {[%clk 0:03:01.2]} 9. a4 {[%clk 0:01:22.7]} 9... a6 {[%clk
0:03:01.2]} 10. a5 {[%clk 0:01:19]} 10... Qd8 {[%clk 0:03:01.3]} 11. h3 {[%clk
0:01:19.5]} 11... Bd6 {[%clk 0:03:01.2]} 12. Bxd6 {[%clk 0:01:16.5]} 12... Qxd6
{[%clk 0:03:02.1]} 13. Be2 {[%clk 0:01:16.6]} 13... O-O {[%clk 0:03:01.4]} 14.
O-O {[%clk 0:01:17.1]} 14... Nd7 {[%clk 0:03:00.3]} 15. Bd3 {[%clk 0:01:10.8]}
15... Bxd3 {[%clk 0:02:54.1]} 16. Qxd3 {[%clk 0:01:10.7]} 16... h6 {[%clk
0:02:55]} 17. Rfe1 {[%clk 0:01:03.7]} 17... Qc7 {[%clk 0:02:55.1]} 18. Ra3
{[%clk 0:00:51.7]} 18... Rfe8 {[%clk 0:02:54.6]} 19. Qd2 {[%clk 0:00:48.1]}
19... Rab8 {[%clk 0:02:52.2]} 20. Raa1 {[%clk 0:00:42.2]} 20... Nf6 {[%clk
0:02:52.2]} 21. Qd3 {[%clk 0:00:37.4]} 21... Ne4 {[%clk 0:02:52.2]} 22. Nfd2
{[%clk 0:00:33.4]} 22... Nd6 {[%clk 0:02:50.5]} 23. Ra4 {[%clk 0:00:29]} 23...
Re7 {[%clk 0:02:50.1]} 24. Rea1 {[%clk 0:00:28]} 24... Rbe8 {[%clk 0:02:47.9]}
25. Nc5 {[%clk 0:00:28.3]} 25... Rd8 {[%clk 0:02:17.1]} 26. b4 {[%clk
0:00:25.5]} 26... e5 {[%clk 0:02:15.1]} 27. dxe5 {[%clk 0:00:20.4]} 27... Nxe5
{[%clk 0:02:16]} 28. Qf1 {[%clk 0:00:20.8]} 28... Nec4 {[%clk 0:02:10.2]} 29.
Nxc4 {[%clk 0:00:20.8]} 29... Nxc4 {[%clk 0:02:08]} 30. R4a2 {[%clk 0:00:20.2]}
30... Rde8 {[%clk 0:02:08.2]} 31. Rd1 {[%clk 0:00:18.7]} 31... h5 {[%clk
0:02:06.3]} 32. Nb3 {[%clk 0:00:17.6]} 32... h4 {[%clk 0:02:05.9]} 33. Nd4
{[%clk 0:00:18]} 33... Qf4 {[%clk 0:02:06]} 34. Re2 {[%clk 0:00:17.1]} 34...
Rxe2 {[%clk 0:01:28.2]} 35. Nxe2 {[%clk 0:00:18]} 35... Qg5 {[%clk 0:01:28.6]}
36. Nd4 {[%clk 0:00:17.9]} 36... Nd2 {[%clk 0:01:25.6]} 37. Qd3 {[%clk
0:00:18.1]} 37... Ne4 {[%clk 0:01:26.2]} 38. Nf3 {[%clk 0:00:18.2]} 38... Qf6
{[%clk 0:01:21.4]} 39. Re1 {[%clk 0:00:12]} 39... Rd8 {[%clk 0:00:52.7]} 40. Re3
{[%clk 0:00:12.1]} 40... Nxc3 {[%clk 0:00:21.6]} 41. Qxc3 {[%clk 0:00:08.8]}
41... d4 {[%clk 0:00:22.2]} 42. Nxd4 {[%clk 0:00:09]} 42... Rxd4 {[%clk
0:00:23.1]} 43. Qc2 {[%clk 0:00:06.5]} 43... g6 {[%clk 0:00:20.5]} 44. Rf3
{[%clk 0:00:06.7]} 44... Qe7 {[%clk 0:00:19.7]} 45. Qc3 {[%clk 0:00:02.9]} 45...
Qxb4 {[%clk 0:00:19.3]} 46. Qc8+ {[%clk 0:00:02.7]} 46... Kg7 {[%clk 0:00:19.1]}
47. Qc7 {[%clk 0:00:03.4]} 47... Rd1+ {[%clk 0:00:17.2]} 48. Kh2 {[%clk
0:00:03.7]} 48... Qd6+ {[%clk 0:00:17.9]} 49. Qxd6 {[%clk 0:00:04.1]} 49... Rxd6
{[%clk 0:00:18.8]} 50. Rb3 {[%clk 0:00:03.7]} 50... Rd5 {[%clk 0:00:19.3]} 51.
Rxb7 {[%clk 0:00:03.8]} 51... Rxa5 {[%clk 0:00:19.8]} 52. Rb4 {[%clk 0:00:04.1]}
52... g5 {[%clk 0:00:20.3]} 53. Rb7 {[%clk 0:00:04.3]} 53... Ra2 {[%clk
0:00:20.3]} 54. Ra7 {[%clk 0:00:05.2]} 54... a5 {[%clk 0:00:19.6]} 55. f3 {[%clk
0:00:04.7]} 55... a4 {[%clk 0:00:19.7]} 56. Ra5 {[%clk 0:00:04.6]} 56... f6
{[%clk 0:00:19.1]} 57. Ra6 {[%clk 0:00:04.5]} 57... Kg6 {[%clk 0:00:19.1]} 58.
Kg1 {[%clk 0:00:05]} 58... a3 {[%clk 0:00:19.6]} 59. Ra5 {[%clk 0:00:05.2]}
59... Kf7 {[%clk 0:00:19.8]} 60. Ra6 {[%clk 0:00:05.5]} 60... Ke7 {[%clk
0:00:20.4]} 61. Kf1 {[%clk 0:00:05.7]} 61... Kd7 {[%clk 0:00:19.7]} 62. Kg1
{[%clk 0:00:05.3]} 62... Kc7 {[%clk 0:00:18.4]} 63. Rxf6 {[%clk 0:00:04.8]}
63... Rb2 {[%clk 0:00:18.8]} 64. Ra6 {[%clk 0:00:03.9]} 64... a2 {[%clk
0:00:19]} 65. Kh2 {[%clk 0:00:03.5]} 65... Kb7 {[%clk 0:00:19.7]} 66. Ra5 {[%clk
0:00:02.7]} 66... Kb6 {[%clk 0:00:20.1]} 67. Ra8 {[%clk 0:00:03.1]} 67... Kc5
{[%clk 0:00:20.6]} 68. Rc8+ {[%clk 0:00:03.4]} 68... Kd4 {[%clk 0:00:21]} 69.
Rd8+ {[%clk 0:00:03.6]} 69... Kc3 {[%clk 0:00:20.6]} 70. Ra8 {[%clk 0:00:02.8]}
70... Kc2 {[%clk 0:00:20.8]} 0-1

[Event "*** Titled Tuesday Blitz"]
[Site "Chess.com"]
[Date "2020.04.21"]
[Round "5"]
[White "Biranidun"]
[Black "GulamaliRises"]
[Result "1-0"]
[WhiteElo "2721"]
[BlackElo "2564"]
[TimeControl "180+1"]
[EndTime "10:58:17 PDT"]
[Termination "Biranidun won by resignation"]

1. e4 {[%clk 0:03:00.9]} 1... c5 {[%clk 0:03:00]} 2. Nf3 {[%clk 0:03:01.3]} 2...
e6 {[%clk 0:02:58.5]} 3. d4 {[%clk 0:03:01.8]} 3... cxd4 {[%clk 0:02:59.4]} 4.
Nxd4 {[%clk 0:03:02.7]} 4... a6 {[%clk 0:02:59.9]} 5. Bd3 {[%clk 0:03:02.2]}
5... Nf6 {[%clk 0:02:51.4]} 6. O-O {[%clk 0:03:01.9]} 6... Qc7 {[%clk 0:02:49]}
7. Qe2 {[%clk 0:03:02]} 7... d6 {[%clk 0:02:45.3]} 8. c4 {[%clk 0:03:02.2]} 8...
Nbd7 {[%clk 0:02:38.1]} 9. f4 {[%clk 0:03:00.3]} 9... Be7 {[%clk 0:02:37.3]} 10.
Nc3 {[%clk 0:02:59.4]} 10... O-O {[%clk 0:02:31.2]} 11. Kh1 {[%clk 0:02:59]}
11... b6 {[%clk 0:02:31]} 12. Bd2 {[%clk 0:02:58]} 12... Bb7 {[%clk 0:02:30.9]}
13. f5 {[%clk 0:02:57.5]} 13... e5 {[%clk 0:01:53.5]} 14. Nb3 {[%clk 0:02:56.5]}
14... Nc5 {[%clk 0:01:49.5]} 15. Nxc5 {[%clk 0:02:53.4]} 15... dxc5 {[%clk
0:01:48.2]} 16. g4 {[%clk 0:02:49.9]} 16... h6 {[%clk 0:01:44.6]} 17. h4 {[%clk
0:02:40.5]} 17... Nh7 {[%clk 0:01:41.6]} 18. Qf2 {[%clk 0:01:31.9]} 18... Qd8
{[%clk 0:01:33.4]} 19. Nd5 {[%clk 0:01:19.4]} 19... Bxh4 {[%clk 0:01:29.3]} 20.
Qe2 {[%clk 0:01:16.7]} 20... f6 {[%clk 0:01:05]} 21. a4 {[%clk 0:01:10.8]} 21...
a5 {[%clk 0:00:58.9]} 22. Ra3 {[%clk 0:01:08.6]} 22... Bg5 {[%clk 0:00:54.3]}
23. Bc3 {[%clk 0:01:06]} 23... Qd6 {[%clk 0:00:47.7]} 24. Rb3 {[%clk 0:01:05.8]}
24... Bxd5 {[%clk 0:00:47.6]} 25. cxd5 {[%clk 0:01:05.8]} 25... Bf4 {[%clk
0:00:45.4]} 26. Bc4 {[%clk 0:01:04.3]} 26... Ng5 {[%clk 0:00:44.9]} 27. Kg2
{[%clk 0:01:03.9]} 27... Kf7 {[%clk 0:00:33.5]} 28. Bb5 {[%clk 0:00:45.5]} 28...
Rh8 {[%clk 0:00:31.9]} 29. Bc6 {[%clk 0:00:45.2]} 29... Rab8 {[%clk 0:00:32]}
30. Rh1 {[%clk 0:00:42.5]} 30... Rhc8 {[%clk 0:00:22.3]} 31. Qc4 {[%clk
0:00:41.6]} 31... Kg8 {[%clk 0:00:20.6]} 32. Kf2 {[%clk 0:00:41.8]} 32... Kh7
{[%clk 0:00:14.7]} 33. Bb5 {[%clk 0:00:41.7]} 33... Qe7 {[%clk 0:00:12.5]} 34.
Ke2 {[%clk 0:00:41.9]} 34... Rd8 {[%clk 0:00:12.8]} 35. Be1 {[%clk 0:00:39.3]}
35... Rd6 {[%clk 0:00:12.5]} 36. Bf2 {[%clk 0:00:39]} 36... Qf7 {[%clk
0:00:12.1]} 37. Kd1 {[%clk 0:00:28.4]} 37... Rbd8 {[%clk 0:00:12.1]} 38. Kc2
{[%clk 0:00:28.7]} 38... Qe7 {[%clk 0:00:11.2]} 39. Kb1 {[%clk 0:00:26.5]} 39...
Qf7 {[%clk 0:00:09.3]} 40. Ka2 {[%clk 0:00:26.8]} 40... Qb7 {[%clk 0:00:09.4]}
41. Ba6 {[%clk 0:00:23.1]} 41... Qc7 {[%clk 0:00:09.5]} 42. Bb5 {[%clk
0:00:22.9]} 42... Rf8 {[%clk 0:00:09.8]} 43. Re1 {[%clk 0:00:22.4]} 43... Rfd8
{[%clk 0:00:10.1]} 44. Rc3 {[%clk 0:00:20.1]} 44... Qf7 {[%clk 0:00:10.2]} 45.
Ba6 {[%clk 0:00:18.3]} 45... Qe7 {[%clk 0:00:10.3]} 46. Bb5 {[%clk 0:00:18.5]}
46... Nf7 {[%clk 0:00:10]} 47. Rh1 {[%clk 0:00:18.2]} 47... R6d7 {[%clk
0:00:10.2]} 48. Bxd7 {[%clk 0:00:17.6]} 48... Qxd7 {[%clk 0:00:11.1]} 49. Ka3
{[%clk 0:00:13.7]} 49... Nd6 {[%clk 0:00:11.4]} 50. Qa6 {[%clk 0:00:13.4]} 50...
Qc7 {[%clk 0:00:10.6]} 51. Re1 {[%clk 0:00:11.6]} 51... c4 {[%clk 0:00:10.1]}
52. Bxb6 {[%clk 0:00:09.3]} 52... Qe7 {[%clk 0:00:10.5]} 53. Bxd8 {[%clk
0:00:07.2]} 53... Nb5+ {[%clk 0:00:10]} 54. Ka2 {[%clk 0:00:03.6]} 54... Nxc3+
{[%clk 0:00:10]} 55. bxc3 {[%clk 0:00:04.5]} 55... Qxd8 {[%clk 0:00:10.5]} 56.
Qxc4 {[%clk 0:00:05]} 56... Qb6 {[%clk 0:00:10.9]} 57. Re2 {[%clk 0:00:04.4]}
57... Qg1 {[%clk 0:00:10.9]} 58. Rb2 {[%clk 0:00:04.6]} 58... Qxg4 {[%clk
0:00:10.7]} 59. d6 {[%clk 0:00:04.7]} 59... Qd1 {[%clk 0:00:10.8]} 60. Qd5
{[%clk 0:00:03.7]} 60... Qxa4+ {[%clk 0:00:10.9]} 61. Kb1 {[%clk 0:00:04.2]}
61... Qd7 {[%clk 0:00:11.4]} 62. Rb7 {[%clk 0:00:03.4]} 62... Qd8 {[%clk
0:00:11.2]} 63. d7 {[%clk 0:00:03.7]} 63... a4 {[%clk 0:00:11.2]} 64. Qc6 {[%clk
0:00:03.8]} 64... a3 {[%clk 0:00:10.2]} 65. Ka2 {[%clk 0:00:04.3]} 65... Qg8+
{[%clk 0:00:09.4]} 66. Qd5 {[%clk 0:00:03.6]} 66... Qd8 {[%clk 0:00:09.1]} 67.
Qe6 {[%clk 0:00:03.7]} 67... h5 {[%clk 0:00:08.9]} 68. Qe8 {[%clk 0:00:03.9]}
68... Qa5 {[%clk 0:00:05.7]} 69. Qxh5+ {[%clk 0:00:04]} 1-0

[Event "*** Titled Tuesday Blitz"]
[Site "Chess.com"]
[Date "2020.04.21"]
[Round "5"]
[White "KhamzinOlzhas"]
[Black "Corpescador"]
[Result "1/2-1/2"]
[WhiteElo "2508"]
[BlackElo "2395"]
[TimeControl "180+1"]
[EndTime "10:58:19 PDT"]
[Termination "Game drawn by stalemate"]

1. e4 {[%clk 0:03:00.9]} 1... c5 {[%clk 0:02:59.8]} 2. Nc3 {[%clk 0:03:00.5]}
2... d6 {[%clk 0:02:57.4]} 3. g3 {[%clk 0:03:00.1]} 3... g6 {[%clk 0:02:56.8]}
4. Bg2 {[%clk 0:02:59.3]} 4... Bg7 {[%clk 0:02:57]} 5. d3 {[%clk 0:02:59.1]}
5... Nc6 {[%clk 0:02:56.4]} 6. Be3 {[%clk 0:02:57.6]} 6... e6 {[%clk 0:02:54.9]}
7. Qd2 {[%clk 0:02:57.3]} 7... Qa5 {[%clk 0:02:53.4]} 8. Nge2 {[%clk 0:02:55.1]}
8... Nd4 {[%clk 0:02:53.5]} 9. a3 {[%clk 0:02:42.2]} 9... Ne7 {[%clk 0:02:51.5]}
10. Rb1 {[%clk 0:02:36.2]} 10... Nec6 {[%clk 0:02:36.6]} 11. O-O {[%clk
0:02:32.9]} 11... O-O {[%clk 0:02:17]} 12. b4 {[%clk 0:02:25]} 12... Qxa3 {[%clk
0:01:56.2]} 13. Bxd4 {[%clk 0:02:20.7]} 13... cxd4 {[%clk 0:00:58.4]} 14. Nb5
{[%clk 0:02:15.8]} 14... Qa4 {[%clk 0:00:56.4]} 15. Nxd6 {[%clk 0:02:14.9]}
15... Rd8 {[%clk 0:00:41.6]} 16. Nc4 {[%clk 0:01:59.7]} 16... b5 {[%clk
0:00:19.8]} 17. Na3 {[%clk 0:01:51.3]} 17... Qxa3 {[%clk 0:00:16.4]} 18. e5
{[%clk 0:01:39.5]} 18... Qa6 {[%clk 0:00:16.2]} 19. f4 {[%clk 0:01:36.9]} 19...
Qb6 {[%clk 0:00:16.1]} 20. g4 {[%clk 0:01:23.3]} 20... Rb8 {[%clk 0:00:16]} 21.
Ng3 {[%clk 0:01:24]} 21... Bb7 {[%clk 0:00:14.1]} 22. Ne4 {[%clk 0:01:24.5]}
22... Ne7 {[%clk 0:00:14.1]} 23. Kh1 {[%clk 0:01:14.3]} 23... Nd5 {[%clk
0:00:13.6]} 24. Rf3 {[%clk 0:01:03.8]} 24... Ne3 {[%clk 0:00:13.3]} 25. Rh3
{[%clk 0:01:04.5]} 25... Nxg2 {[%clk 0:00:12.2]} 26. Qxg2 {[%clk 0:01:02.9]}
26... Bxe4 {[%clk 0:00:12.2]} 27. dxe4 {[%clk 0:00:59.2]} 27... Qc6 {[%clk
0:00:10.5]} 28. Rd1 {[%clk 0:00:51.3]} 28... Rbc8 {[%clk 0:00:10.1]} 29. Rd2
{[%clk 0:00:51.9]} 29... d3 {[%clk 0:00:09.5]} 30. Rhxd3 {[%clk 0:00:45]} 30...
Rxd3 {[%clk 0:00:08.6]} 31. Rxd3 {[%clk 0:00:45.9]} 31... Qxc2 {[%clk
0:00:06.7]} 32. Rd8+ {[%clk 0:00:45.6]} 32... Bf8 {[%clk 0:00:05.8]} 33. Qxc2
{[%clk 0:00:27.5]} 33... Rxc2 {[%clk 0:00:06.7]} 34. Rb8 {[%clk 0:00:27.8]}
34... Rc4 {[%clk 0:00:06.3]} 35. Rxb5 {[%clk 0:00:28]} 35... Rxe4 {[%clk
0:00:06.3]} 36. f5 {[%clk 0:00:26.4]} 36... Rxg4 {[%clk 0:00:05.4]} 37. fxe6
{[%clk 0:00:26]} 37... fxe6 {[%clk 0:00:04.7]} 38. Ra5 {[%clk 0:00:24.5]} 38...
Rxb4 {[%clk 0:00:05.5]} 39. Rxa7 {[%clk 0:00:25.4]} 39... Rb6 {[%clk 0:00:05.4]}
40. Kg2 {[%clk 0:00:24.9]} 40... h5 {[%clk 0:00:06.3]} 41. Kf3 {[%clk
0:00:25.1]} 41... Bg7 {[%clk 0:00:06.6]} 42. Ra8+ {[%clk 0:00:22.1]} 42... Kh7
{[%clk 0:00:06.3]} 43. Ra7 {[%clk 0:00:23]} 43... Rb4 {[%clk 0:00:06.4]} 44. h3
{[%clk 0:00:22.5]} 44... Kh6 {[%clk 0:00:06.8]} 45. Re7 {[%clk 0:00:21.6]} 45...
Rb6 {[%clk 0:00:06.3]} 46. Kf4 {[%clk 0:00:21.8]} 46... Rb4+ {[%clk 0:00:06.2]}
47. Kf3 {[%clk 0:00:22.2]} 47... Bxe5 {[%clk 0:00:06.5]} 48. Rxe6 {[%clk
0:00:22.5]} 48... Rf4+ {[%clk 0:00:06.6]} 49. Ke3 {[%clk 0:00:20]} 49... Rf5
{[%clk 0:00:07.5]} 50. Ke4 {[%clk 0:00:20.6]} 50... Bc3 {[%clk 0:00:04.9]} 51.
Rc6 {[%clk 0:00:20.4]} 51... Bd2 {[%clk 0:00:05.1]} 52. Rc2 {[%clk 0:00:20.1]}
52... Bg5 {[%clk 0:00:05.3]} 53. Rc3 {[%clk 0:00:15.7]} 53... Bf6 {[%clk
0:00:05.4]} 54. Rd3 {[%clk 0:00:15.5]} 54... Re5+ {[%clk 0:00:05.4]} 55. Kf4
{[%clk 0:00:15.5]} 55... Bg7 {[%clk 0:00:06.3]} 56. Rb3 {[%clk 0:00:14.8]} 56...
Rf5+ {[%clk 0:00:07.2]} 57. Ke4 {[%clk 0:00:14.6]} 57... h4 {[%clk 0:00:07]} 58.
Rd3 {[%clk 0:00:09.5]} 58... Rg5 {[%clk 0:00:06.7]} 59. Rf3 {[%clk 0:00:09]}
59... Rg3 {[%clk 0:00:06]} 60. Kf4 {[%clk 0:00:08.2]} 60... Rxf3+ {[%clk
0:00:05]} 61. Kxf3 {[%clk 0:00:09.1]} 61... Kg5 {[%clk 0:00:05.6]} 62. Ke4
{[%clk 0:00:09.6]} 62... Bf6 {[%clk 0:00:05.6]} 63. Kf3 {[%clk 0:00:10.2]} 63...
Bd8 {[%clk 0:00:06.5]} 64. Ke4 {[%clk 0:00:10.7]} 64... Kf6 {[%clk 0:00:05.5]}
65. Ke3 {[%clk 0:00:11.2]} 65... Kf5 {[%clk 0:00:06]} 66. Kf3 {[%clk 0:00:11.9]}
66... Bc7 {[%clk 0:00:06.5]} 67. Ke3 {[%clk 0:00:12]} 67... Bb6+ {[%clk
0:00:07.3]} 68. Kf3 {[%clk 0:00:12.6]} 68... Bc5 {[%clk 0:00:07.8]} 69. Kg2
{[%clk 0:00:12.3]} 69... Kf4 {[%clk 0:00:08.5]} 70. Kh2 {[%clk 0:00:12.5]} 70...
Kf3 {[%clk 0:00:08.9]} 71. Kh1 {[%clk 0:00:13]} 71... Kg3 {[%clk 0:00:09.6]}
1/2-1/2

[Event "*** Titled Tuesday Blitz"]
[Site "Chess.com"]
[Date "2020.04.21"]
[Round "5"]
[White "Nafania1"]
[Black "kingofkolkata"]
[Result "0-1"]
[WhiteElo "2363"]
[BlackElo "2246"]
[TimeControl "180+1"]
[EndTime "10:58:24 PDT"]
[Termination "kingofkolkata won on time"]

1. e4 {[%clk 0:03:00.9]} 1... e5 {[%clk 0:02:59.8]} 2. Nf3 {[%clk 0:03:00.7]}
2... Nc6 {[%clk 0:03:00.2]} 3. Bb5 {[%clk 0:03:00.1]} 3... a6 {[%clk 0:03:00.5]}
4. Ba4 {[%clk 0:03:00]} 4... Nf6 {[%clk 0:03:00.7]} 5. O-O {[%clk 0:02:59.6]}
5... Be7 {[%clk 0:03:01.2]} 6. Re1 {[%clk 0:02:59.2]} 6... b5 {[%clk 0:03:01.7]}
7. Bb3 {[%clk 0:02:59.4]} 7... d6 {[%clk 0:03:02.6]} 8. c3 {[%clk 0:02:59.6]}
8... O-O {[%clk 0:03:01.4]} 9. h3 {[%clk 0:02:53.8]} 9... Bb7 {[%clk 0:03:01.5]}
10. d4 {[%clk 0:02:49.6]} 10... Re8 {[%clk 0:03:01]} 11. Nbd2 {[%clk 0:02:43.6]}
11... Bf8 {[%clk 0:03:00.8]} 12. a3 {[%clk 0:02:40.9]} 12... Nb8 {[%clk
0:02:59.8]} 13. Bc2 {[%clk 0:02:32.7]} 13... h6 {[%clk 0:02:59.5]} 14. b4 {[%clk
0:02:26.8]} 14... Nbd7 {[%clk 0:02:59.7]} 15. Bb2 {[%clk 0:02:23.9]} 15... c6
{[%clk 0:02:51.9]} 16. c4 {[%clk 0:02:18.5]} 16... exd4 {[%clk 0:02:51.2]} 17.
Nxd4 {[%clk 0:02:06.6]} 17... c5 {[%clk 0:02:51.5]} 18. Nf5 {[%clk 0:01:56.2]}
18... g6 {[%clk 0:02:42.1]} 19. Ng3 {[%clk 0:01:47.7]} 19... Bg7 {[%clk
0:02:41.7]} 20. Rb1 {[%clk 0:01:37.8]} 20... Qc7 {[%clk 0:02:41]} 21. Bb3 {[%clk
0:01:12.9]} 21... Ne5 {[%clk 0:02:36.4]} 22. Bxe5 {[%clk 0:01:11.9]} 22... Rxe5
{[%clk 0:02:30.4]} 23. Rc1 {[%clk 0:01:07.2]} 23... Rae8 {[%clk 0:02:24.3]} 24.
cxb5 {[%clk 0:01:06.6]} 24... axb5 {[%clk 0:02:24.4]} 25. bxc5 {[%clk
0:00:57.6]} 25... dxc5 {[%clk 0:02:25.3]} 26. Nf3 {[%clk 0:00:54.6]} 26... R5e7
{[%clk 0:02:23.6]} 27. e5 {[%clk 0:00:55]} 27... c4 {[%clk 0:02:03.7]} 28. exf6
{[%clk 0:00:41.7]} 28... Bxf3 {[%clk 0:02:01.6]} 29. Rxe7 {[%clk 0:00:41.4]}
29... Qxe7 {[%clk 0:01:49.9]} 30. Qxf3 {[%clk 0:00:37.3]} 30... Qxf6 {[%clk
0:01:46.1]} 31. Bxc4 {[%clk 0:00:19.8]} 31... Qxf3 {[%clk 0:01:41.1]} 32. gxf3
{[%clk 0:00:20]} 32... bxc4 {[%clk 0:01:41.3]} 33. Rxc4 {[%clk 0:00:19.7]} 33...
Ra8 {[%clk 0:01:39.2]} 34. a4 {[%clk 0:00:19.6]} 34... h5 {[%clk 0:01:29.7]} 35.
Ne4 {[%clk 0:00:19.6]} 35... Be5 {[%clk 0:01:26.5]} 36. Nc5 {[%clk 0:00:19.2]}
36... Rc8 {[%clk 0:01:22.3]} 37. a5 {[%clk 0:00:10.1]} 37... Bd6 {[%clk
0:01:19.1]} 38. a6 {[%clk 0:00:05.9]} 38... Rxc5 {[%clk 0:01:17.3]} 39. a7
{[%clk 0:00:03.7]} 39... Rxc4 {[%clk 0:00:58.3]} 40. a8=Q+ {[%clk 0:00:03.7]}
40... Kg7 {[%clk 0:00:57.1]} 41. Qd5 {[%clk 0:00:03.7]} 41... Rc1+ {[%clk
0:00:53.9]} 42. Kg2 {[%clk 0:00:04.1]} 42... Be7 {[%clk 0:00:50]} 43. Qd2 {[%clk
0:00:04]} 43... Rc6 {[%clk 0:00:44.4]} 44. Qd5 {[%clk 0:00:03.7]} 44... Re6
{[%clk 0:00:43.2]} 45. Qd7 {[%clk 0:00:03.9]} 45... Bf6 {[%clk 0:00:42.7]} 46.
Qd5 {[%clk 0:00:03.9]} 46... Re5 {[%clk 0:00:42.8]} 47. Qd7 {[%clk 0:00:04]}
47... Rg5+ {[%clk 0:00:42.9]} 48. Kf1 {[%clk 0:00:04]} 48... Re5 {[%clk
0:00:41.7]} 49. Qd6 {[%clk 0:00:03.7]} 49... Re7 {[%clk 0:00:40.9]} 50. Qd5
{[%clk 0:00:02.9]} 50... Re6 {[%clk 0:00:41.8]} 51. Qd3 {[%clk 0:00:02.9]} 51...
Rb6 {[%clk 0:00:39.2]} 52. f4 {[%clk 0:00:03.1]} 52... Rb2 {[%clk 0:00:36]} 53.
Kg2 {[%clk 0:00:03.2]} 53... Bh4 {[%clk 0:00:33.4]} 54. Qd4+ {[%clk 0:00:03.6]}
54... Bf6 {[%clk 0:00:33.6]} 55. Qd3 {[%clk 0:00:03.9]} 55... Rb4 {[%clk
0:00:32.2]} 56. f5 {[%clk 0:00:03.3]} 56... g5 {[%clk 0:00:30]} 57. Qd6 {[%clk
0:00:02.8]} 57... Rb2 {[%clk 0:00:26.6]} 58. Qd3 {[%clk 0:00:02.6]} 58... Rb4
{[%clk 0:00:24.2]} 59. Qf3 {[%clk 0:00:02.5]} 59... Rd4 {[%clk 0:00:25.1]} 60.
Qxh5 {[%clk 0:00:02.4]} 60... Rf4 {[%clk 0:00:24.3]} 61. Qe2 {[%clk 0:00:02.3]}
61... Rxf5 {[%clk 0:00:24]} 62. Qe4 {[%clk 0:00:02.2]} 62... Re5 {[%clk
0:00:24]} 63. Qd3 {[%clk 0:00:02]} 63... Re6 {[%clk 0:00:23.9]} 64. f4 {[%clk
0:00:01.8]} 64... gxf4 {[%clk 0:00:20.7]} 65. Qf5 {[%clk 0:00:01.6]} 65... Re2+
{[%clk 0:00:17.4]} 0-1